bitfinex-derivatives/quotes_ETHF0:USTF0_20250903
["timestamp","ask_amount","ask_price","bid_price","bid_amount"]
[1756910104407,0.2742,4459.0,4458.6,40.8]
[1756910104812,4.1722,4459.5,4458.6,40.8]
[1756910105015,3.482,4459.5,4458.6,40.8]
[1756910105216,0.6902,4459.4,4458.6,40.8]
[1756910105514,0.24,4459.4,4458.6,41.04]
[1756910105715,0.6902,4459.3,4458.6,41.04]
[1756910106411,0.9312,4459.3,4458.6,41.04]
[1756910106923,0.6902,4459.2,4458.6,40.8]
[1756910107719,0.6902,4458.7,4458.6,40.8]
[1756910108709,0.6902,4458.7,4458.1,3.2078]
[1756910108920,0.6902,4458.2,4457.1,3.2078]
[1756910109116,0.6902,4457.7,4457.1,3.2078]
[1756910109317,0.6902,4457.9,4457.2,40.8]
[1756910109623,3.2078,4457.8,4457.2,41.04]
[1756910109820,0.2742,4457.5,4457.2,40.8]
[1756910110320,0.6902,4457.4,4457.2,40.8]
[1756910111026,3.2078,4457.3,4456.1,3.2078]
[1756910111224,0.6902,4457.2,4456.1,3.2078]
[1756910111515,0.6902,4456.7,4456.2,40.8]
[1756910111717,0.6626,4456.2,4455.1,3.2078]
[1756910111927,0.9217,4456.0,4455.2,0.24]
[1756910112313,0.9217,4456.0,4455.7,40.8]
[1756910112513,0.2591,4456.0,4455.7,40.8]
[1756910113423,0.6626,4455.9,4455.7,40.8]
[1756910114021,0.2591,4456.0,4455.7,40.8]
[1756910114719,0.24,4456.0,4455.7,44.0078]
[1756910115113,0.6626,4457.1,4455.7,48.0078]
[1756910115314,3.2078,4456.8,4455.8,0.24]
[1756910115521,0.9368,4457.5,4456.3,3.2078]
[1756910115717,0.24,4457.4,4456.4,0.24]
[1756910116815,0.6626,4457.3,4456.4,0.24]
[1756910117017,0.6626,4457.3,4456.3,3.2078]
[1756910117018,3.2078,4457.1,4456.3,3.2078]
[1756910117422,0.2591,4457.0,4456.3,3.2078]
[1756910117618,0.9026,4456.9,4456.3,3.2078]
[1756910117822,0.24,4456.9,4456.3,3.2078]
[1756910118121,0.24,4456.9,4455.7,40.8]
[1756910118122,0.9217,4456.5,4455.7,44.0078]
[1756910118322,0.24,4456.4,4455.7,44.0078]
[1756910118720,0.2591,4456.0,4455.7,40.8]
[1756910119115,0.2591,4456.5,4455.7,40.8]
[1756910119319,0.4991,4456.5,4455.9,3.2078]
[1756910120626,0.2591,4456.0,4455.7,40.8]
[1756910120926,0.6626,4455.9,4455.7,40.8]
[1756910121221,0.24,4455.9,4455.7,40.8]
[1756910121419,0.24,4455.9,4454.7,3.2078]
[1756910121420,0.6626,4455.4,4454.7,3.2078]
[1756910121620,0.24,4455.3,4454.7,3.2078]
[1756910121822,0.24,4455.5,4454.8,40.8]
[1756910122523,0.6626,4455.9,4455.2,3.2078]
[1756910122524,0.24,4455.9,4455.2,3.2078]
[1756910123419,0.2591,4456.0,4455.2,3.2078]
[1756910123621,4.1104,4456.2,4455.2,3.2078]
[1756910123822,4.1104,4456.2,4455.3,0.24]
[1756910125425,0.9026,4456.2,4455.3,0.24]
[1756910125619,0.24,4456.2,4454.8,40.8]
[1756910125825,3.2078,4455.8,4454.8,40.8]
[1756910126029,0.9217,4455.5,4454.8,40.8]
[1756910126524,0.24,4455.4,4454.8,40.8]
[1756910127321,0.2591,4456.0,4455.2,3.2078]
[1756910127525,0.9026,4455.9,4455.2,3.2078]
[1756910127722,0.6626,4455.8,4455.2,3.2078]
[1756910128120,0.6626,4455.8,4454.4,4.03946538]
[1756910128121,0.2591,4454.5,4454.4,3.2078]
[1756910128319,0.2591,4455.0,4454.4,44.0078]
[1756910129027,0.6626,4454.9,4454.4,44.0078]
[1756910129226,0.24,4454.8,4454.4,44.0078]
[1756910129520,0.6626,4454.7,4454.4,44.0078]
[1756910129721,0.24,4454.8,4454.4,44.0078]
[1756910129722,0.2591,4454.5,4454.4,40.8]
[1756910129929,0.9217,4454.5,4454.4,40.8]
[1756910130225,0.24,4454.8,4454.4,40.8]
[1756910130226,0.6626,4454.8,4454.4,40.8]
[1756910130428,3.4478,4454.9,4454.4,40.8]
[1756910130822,0.24,4454.9,4454.4,44.0078]
[1756910131026,0.6626,4454.8,4454.4,44.0078]
[1756910131532,0.24,4454.9,4454.4,44.0078]
[1756910131727,0.2591,4455.0,4454.4,44.0078]
[1756910132027,4.1295,4454.5,4454.0,0.5]
[1756910132228,0.6626,4454.3,4454.0,0.5]
[1756910132625,0.6626,4454.1,4454.0,0.5]
[1756910132925,3.4669,4454.5,4454.0,0.5]
[1756910133129,0.9026,4454.4,4454.0,0.5]
[1756910133330,0.6626,4454.3,4454.0,0.5]
[1756910133531,0.6626,4454.9,4454.2,3.2078]
[1756910133723,0.24,4454.8,4454.7,3.2078]
[1756910133928,0.9026,4455.1,4454.7,3.2078]
[1756910134131,0.9026,4455.1,4454.8,40.8]
[1756910134432,0.24,4455.2,4454.8,40.8]
[1756910134628,0.24,4455.3,4454.8,40.8]
[1756910135435,0.6626,4455.2,4454.8,40.8]
[1756910135731,0.24,4455.4,4454.8,40.8]
[1756910135930,0.9026,4455.4,4454.8,40.8]
[1756910136131,0.24,4455.4,4454.8,40.8]
[1756910136927,0.6626,4454.9,4454.8,40.8]
[1756910137331,0.9026,4454.9,4454.8,40.8]
[1756910137729,0.9026,4454.9,4454.2,3.4478]
[1756910137730,0.6626,4454.4,4454.2,3.2078]
[1756910137933,0.6626,4454.3,4454.2,3.2078]
[1756910138228,0.2591,4455.0,4454.2,44.0078]
[1756910138229,0.6626,4454.8,4454.2,44.0078]
[1756910138435,0.2591,4455.5,4454.7,3.61177]
[1756910138733,3.2078,4456.7,4455.2,3.61173]
[1756910138734,0.9026,4456.3,4455.2,3.61173]
[1756910138932,0.9026,4456.3,4454.9,4.03946538]
[1756910138933,0.9026,4456.3,4455.7,3.2078]
[1756910141031,0.2591,4456.0,4455.7,3.2078]
[1756910141434,0.6626,4455.9,4455.7,3.2078]
[1756910141929,0.2591,4456.0,4455.7,3.2078]
[1756910142327,0.697,4455.9,4455.7,3.2078]
[1756910142533,0.2591,4456.0,4455.7,3.2078]
[1756910142728,0.2591,4456.0,4454.4,0.40401]
[1756910142729,0.2564,4455.5,4454.3,3.2078]
[1756910143032,0.9534,4455.0,4454.3,3.2078]
[1756910143338,0.937,4454.9,4454.3,3.2078]
[1756910143529,0.697,4454.8,4454.3,3.2078]
[1756910143731,0.9534,4454.5,4454.4,40.8]
[1756910145033,4.9534,4454.5,4454.4,40.8]
[1756910145225,4.9534,4454.5,4454.0,0.5]
[1756910145425,0.697,4454.3,4454.0,0.5]
[1756910145625,0.24,4454.4,4454.1,40.8]
[1756910145928,0.24,4454.4,4454.0,0.5]
[1756910145929,4.73646538,4454.2,4454.0,0.5]
[1756910146127,3.9048,4454.1,4454.0,0.5]
[1756910146328,7.9048,4454.1,4454.0,0.5]
[1756910146632,0.2564,4454.0,4453.0,40.8]
[1756910146828,0.697,4453.4,4453.0,40.8]
[1756910147130,0.24,4453.3,4453.0,41.2297]
[1756910147332,0.24,4453.3,4453.0,40.8]
[1756910147542,0.697,4453.2,4453.0,40.8]
[1756910148426,0.24,4453.3,4453.0,40.8]
[1756910149634,0.697,4453.2,4453.0,40.8]
[1756910149933,0.24,4453.3,4453.0,40.8]
[1756910150330,0.697,4453.2,4453.0,40.8]
[1756910150529,0.24,4453.3,4453.0,40.8]
[1756910150730,0.697,4453.2,4453.0,40.8]
[1756910151037,0.24,4453.3,4453.0,40.8]
[1756910151342,0.697,4453.2,4453.0,40.8]
[1756910151640,4.03946538,4453.2,4453.0,40.8]
[1756910151835,0.697,4452.9,4452.8,0.17067721]
[1756910152134,0.937,4452.9,4452.8,0.17067721]
[1756910152435,4.937,4452.9,4452.8,0.17067721]
[1756910152636,5.43991432,4452.9,4452.8,0.17067721]
[1756910154939,1.19991432,4452.9,4452.8,0.17067721]
[1756910155236,0.937,4452.9,4452.8,0.17067721]
[1756910155738,0.697,4452.9,4452.8,0.17067721]
[1756910155938,0.24,4452.9,4452.8,0.60037721]
[1756910156235,0.937,4452.9,4452.8,0.17067721]
[1756910157536,4.937,4452.9,4452.8,0.17067721]
[1756910157934,0.937,4452.9,4452.8,0.17067721]
[1756910159140,1.44045323,4452.9,4452.8,0.17067721]
[1756910159329,0.74345323,4452.9,4451.8,40.8]
[1756910159635,0.697,4451.9,4451.8,40.8]
[1756910159838,0.697,4451.8,4450.8,3.8081]
[1756910160039,3.2078,4451.8,4450.9,0.6003]
[1756910160231,0.24,4451.7,4451.1,0.40431]
[1756910160432,0.24,4451.7,4451.5,0.2148]
[1756910160839,0.24,4451.7,4451.6,4.6003]
[1756910161239,0.24,4451.8,4451.7,0.6003]
[1756910161537,3.2078,4452.3,4451.7,40.8]
[1756910161834,0.24,4452.3,4452.0,0.1707]
[1756910162341,0.24,4452.3,4452.1,0.6003]
[1756910162538,0.24,4452.3,4452.0,0.1707]
[1756910162935,3.9048,4452.8,4452.1,0.6003]
[1756910163139,3.9048,4453.3,4452.1,0.6003]
[1756910163440,3.9048,4453.3,4452.3,0.6003]
[1756910163638,0.24,4453.2,4452.6,0.6003]
[1756910163837,3.2078,4453.3,4452.6,0.40417]
[1756910164033,3.2078,4453.3,4452.7,0.6003]
[1756910164233,7.24726538,4453.3,4452.4,3.2078]
[1756910164637,0.697,4453.8,4453.0,3.2078]
[1756910164834,0.697,4453.8,4453.1,0.6003]
[1756910165438,3.2078,4453.4,4452.5,0.6003]
[1756910165635,0.24,4453.3,4452.5,0.6003]
[1756910166435,0.24,4453.3,4452.5,4.65844538]
[1756910166632,3.2078,4453.4,4452.7,0.6003]
[1756910166838,0.697,4453.3,4452.7,0.6003]
[1756910167145,0.697,4452.9,4452.8,40.8]
[1756910168138,0.697,4452.9,4450.7,32.351]
[1756910168139,0.697,4452.8,4451.4,3.2078]
[1756910168336,0.697,4452.1,4451.4,3.2078]
[1756910168536,0.697,4451.8,4451.5,40.8]
[1756910168740,4.03946538,4451.9,4451.5,40.8]
[1756910169051,0.697,4451.6,4451.5,40.8]
[1756910169338,0.937,4451.6,4451.5,40.8]
[1756910169544,0.697,4451.6,4451.5,40.8]
[1756910169847,0.937,4451.6,4451.5,40.8]
[1756910170339,3.2078,4451.7,4451.5,40.8]
[1756910170545,0.24,4451.7,4451.6,0.6003]
[1756910170750,0.24,4451.7,4451.5,40.8]
[1756910171045,0.24,4451.7,4451.5,41.4003]
[1756910171439,0.24,4451.7,4451.6,0.6003]
[1756910171746,3.8955,4452.7,4451.6,0.5819]
[1756910171944,0.74430857,4452.6,4451.6,0.5819]
[1756910172241,0.6877,4452.4,4451.6,0.5819]
[1756910172442,0.50495176,4452.3,4451.6,0.5819]
[1756910172646,0.24,4452.2,4451.6,0.5819]
[1756910173039,0.6877,4452.4,4451.6,0.5819]
[1756910173240,0.24,4452.3,4451.6,0.5819]
[1756910173450,0.24,4452.3,4451.5,40.8]
[1756910173451,4.1355,4453.8,4452.6,0.5819]
[1756910173646,0.50507365,4453.7,4452.9,0.5819]
[1756910173844,0.50507365,4453.6,4452.9,0.5819]
[1756910174045,4.1355,4453.8,4452.9,0.5819]
[1756910174255,0.505073,4453.7,4452.9,0.5819]
[1756910174454,0.9567,4453.5,4452.8,3.2078]
[1756910174753,0.6877,4453.2,4452.4,0.5819]
[1756910175055,0.24,4453.1,4452.5,0.1835]
[1756910175254,0.24,4453.1,4452.6,0.5819]
[1756910175656,0.24,4453.1,4452.5,0.5819]
[1756910176254,0.24,4453.1,4452.6,3.2078]
[1756910176653,0.24,4453.2,4452.6,3.2078]
[1756910176852,0.24,4453.2,4452.7,0.5819]
[1756910177055,0.9277,4453.2,4452.6,3.2078]
[1756910178158,0.6877,4453.1,4452.7,40.8]
[1756910179059,0.6877,4452.9,4452.7,40.8]
[1756910179654,0.24,4453.0,4452.7,40.8]
[1756910179655,0.509,4453.0,4452.7,40.8]
[1756910180565,0.6877,4452.9,4452.7,40.8]
[1756910180957,0.509,4453.0,4452.7,40.8]
[1756910181159,0.24,4452.9,4452.7,41.3819]
[1756910181462,3.8955,4453.3,4452.7,41.3819]
[1756910181463,0.24,4453.1,4452.7,41.3819]
[1756910181762,0.24,4453.1,4452.7,40.8]
[1756910181961,0.24,4453.1,4452.8,0.5819]
[1756910182463,0.6877,4453.0,4452.8,0.5819]
[1756910182662,0.6877,4453.0,4452.7,40.8]
[1756910183066,0.6877,4453.0,4452.7,41.3819]
[1756910183957,0.6877,4453.0,4452.7,40.8]
[1756910184159,0.24,4453.1,4452.7,40.8]
[1756910184368,0.9277,4453.1,4452.8,0.5819]
[1756910184570,3.2078,4453.9,4453.1,0.5819]
[1756910184762,3.2078,4453.9,4453.2,0.5819]
[1756910184963,0.24,4454.2,4453.6,0.5819]
[1756910185268,3.44539,4454.5,4454.0,40.8]
[1756910185466,0.9277,4454.4,4454.0,40.8]
[1756910185666,0.6877,4454.3,4454.0,40.8]
[1756910185862,0.24,4454.4,4454.0,40.8]
[1756910186169,3.44539,4454.5,4454.0,40.8]
[1756910186382,0.24,4454.4,4454.1,0.5819]
[1756910186562,0.24,4454.4,4454.0,40.9835]
[1756910186758,3.44539,4454.5,4454.1,0.24]
[1756910186961,0.23759,4454.5,4454.2,0.5819]
[1756910187469,0.23759,4454.5,4454.1,3.2078]
[1756910187670,0.23759,4454.5,4454.4,0.5819]
[1756910188263,0.23759,4454.5,4454.4,41.3819]
[1756910188458,0.92529,4454.5,4454.4,40.8]
[1756910188863,0.23759,4454.5,4454.4,41.3819]
[1756910190974,0.92529,4454.5,4454.4,40.8]
[1756910192174,5.19429,4454.5,4454.4,40.8]
[1756910192771,0.92529,4454.5,4454.4,40.8]
[1756910193568,1.19429,4454.5,4454.4,40.8]
[1756910194368,5.19429,4454.5,4454.4,40.8]
[1756910195568,5.19429,4454.5,4453.5,3.2078]
[1756910195569,4.50659,4454.5,4453.5,3.2078]
[1756910195771,0.6877,4453.9,4453.0,3.7897]
[1756910196075,0.269,4454.0,4453.1,40.8]
[1756910196076,0.24,4453.8,4453.1,40.8]
[1756910196569,0.6877,4453.4,4453.1,40.8]
[1756910196776,0.6877,4453.2,4453.1,40.8]
[1756910197077,0.6877,4453.2,4452.1,0.5819]
[1756910197264,0.6877,4452.9,4452.2,0.24]
[1756910197465,0.6877,4452.7,4452.3,40.8]
[1756910197968,0.269,4453.5,4452.6,0.5819]
[1756910197969,0.24,4453.2,4452.6,0.5819]
[1756910198168,0.24,4453.2,4452.7,0.5819]
[1756910198566,3.2078,4453.9,4452.9,0.5819]
[1756910198768,0.24,4453.8,4453.1,0.5819]
[1756910199169,0.6877,4453.7,4453.1,0.5819]
[1756910200073,0.24,4453.8,4453.1,0.5819]
[1756910200670,0.24,4453.8,4453.2,0.24]
[1756910200868,3.2078,4454.4,4453.6,3.2078]
[1756910201065,0.24,4454.4,4453.7,0.5819]
[1756910201865,0.24,4454.4,4453.8,0.24]
[1756910202177,0.625,4454.3,4453.6,3.7658]
[1756910202870,3.2078,4454.4,4453.7,0.558]
[1756910203864,0.23759,4454.5,4453.7,0.558]
[1756910204166,0.23759,4454.5,4453.6,3.4478]
[1756910204167,0.23759,4454.5,4454.4,41.358]
[1756910204569,1.11129,4454.5,4454.4,40.8]
[1756910204966,0.86259,4454.5,4454.4,40.8]
[1756910207370,1.11129,4454.5,4454.4,40.8]
[1756910207769,5.11129,4454.5,4454.4,40.8]
[1756910208181,0.625,4454.4,4453.5,4.0058]
[1756910208479,0.625,4454.2,4453.5,4.0058]
[1756910208672,0.625,4454.2,4453.6,40.8]
[1756910209177,0.24,4454.3,4453.7,0.558]
[1756910209478,3.4478,4454.4,4453.8,0.558]
[1756910209875,0.625,4454.3,4453.8,0.798]
[1756910210078,3.4478,4454.4,4453.8,0.798]
[1756910210470,3.4478,4454.4,4453.8,0.558]
[1756910211778,3.2078,4454.4,4453.8,0.558]
[1756910211978,0.625,4454.4,4453.7,0.558]
[1756910212180,0.625,4454.4,4453.8,0.24]
[1756910212379,0.625,4454.4,4453.8,0.798]
[1756910212581,0.23759,4454.5,4453.8,0.24]
[1756910212781,0.23759,4454.5,4453.9,0.798]
[1756910212976,0.23759,4454.5,4454.1,3.2078]
[1756910213177,0.48629,4454.5,4454.2,0.558]
[1756910213387,0.625,4454.4,4454.2,0.558]
[1756910214073,0.625,4454.4,4454.3,40.8]
[1756910214580,0.625,4454.4,4454.3,41.358]
[1756910215282,0.23759,4454.5,4454.4,0.558]
[1756910216274,0.86259,4454.5,4454.4,0.558]
[1756910216480,0.625,4454.4,4454.3,40.8]
[1756910217783,0.23759,4454.5,4454.3,40.8]
[1756910218086,0.23759,4454.5,4454.4,0.888]
[1756910218690,1.11129,4454.5,4454.4,0.33]
[1756910221184,1.55389,4454.5,4454.4,0.7741]
[1756910221687,0.86259,4454.5,4454.4,1.773]
[1756910221988,1.98799,4454.5,4454.4,1.215]
[1756910222180,1.98799,4454.5,4454.4,0.33]
[1756910222580,1.98799,4454.5,4454.4,1.215]
[1756910223795,0.23759,4454.5,4454.4,1.773]
[1756910224382,0.86259,4454.5,4454.4,1.773]
[1756910225892,1.98799,4454.5,4454.4,0.7741]
[1756910226095,1.98799,4454.5,4454.4,0.33]
[1756910227289,2.49497258,4454.5,4454.4,0.33]
[1756910227998,2.73497258,4454.5,4454.4,0.33]
[1756910230491,0.23759,4454.5,4454.4,1.773]
[1756910230999,1.98799,4454.5,4454.4,1.215]
[1756910231896,1.55389,4454.5,4454.4,1.215]
[1756910232501,1.97419,4454.5,4454.4,1.215]
[1756910232700,1.97419,4454.5,4454.4,0.7741]
[1756910232997,0.23759,4454.5,4454.4,1.7149]
[1756910233697,3.2078,4455.4,4454.4,1.7149]
[1756910233698,0.6424,4455.5,4455.4,0.845]
[1756910233900,3.2078,4456.4,4455.5,0.5337]
[1756910233902,0.6424,4456.1,4455.5,0.5337]
[1756910234097,1.4936,4455.7,4455.6,0.6779]
[1756910234404,1.3183,4455.5,4455.4,0.6779]
[1756910234606,1.3183,4455.5,4455.4,41.4779]
[1756910234805,1.3183,4455.5,4455.4,41.7716]
[1756910235099,1.3183,4455.5,4455.4,41.4779]
[1756910235299,1.3183,4455.5,4455.4,40.8]
[1756910235798,0.245,4455.5,4455.4,40.8]
[1756910236105,0.8874,4455.5,4455.4,40.8]
[1756910236304,1.39986833,4455.5,4455.4,40.8]
[1756910237201,1.39986833,4455.5,4455.4,41.3337]
[1756910237202,0.51246833,4455.5,4455.4,41.3337]
[1756910237402,0.9114,4456.0,4455.9,1.3787]
[1756910237403,0.6424,4456.0,4455.9,1.3787]
[1756910237595,0.6424,4456.3,4456.2,0.845]
[1756910237793,1.15471962,4456.3,4456.2,0.845]
[1756910238205,1.58561962,4456.3,4456.2,41.2379]
[1756910238405,1.58561962,4456.3,4456.2,40.8]
[1756910239501,5.58561962,4456.3,4456.2,40.8]
[1756910239802,5.58561962,4456.3,4455.4,0.239]
[1756910240108,0.6424,4455.3,4455.2,3.4468]
[1756910240308,1.4936,4455.3,4455.2,44.4457]
[1756910240805,1.4936,4455.3,4455.2,41.2379]
[1756910241006,1.0733,4455.3,4455.2,41.2379]
[1756910241308,0.6424,4455.3,4455.2,40.8]
[1756910241505,4.0892,4455.3,4455.2,40.8]
[1756910241705,4.60125012,4455.3,4455.2,40.8]
[1756910241902,0.6424,4455.2,4454.3,0.239]
[1756910242106,0.51205012,4455.1,4454.4,0.5337]
[1756910242306,0.51205012,4455.1,4454.5,41.039]
[1756910242502,0.51205012,4455.1,4454.7,3.2078]
[1756910242703,0.239,4455.4,4454.9,0.5337]
[1756910242903,0.6424,4455.3,4454.8,0.239]
[1756910243107,0.6424,4455.3,4454.9,0.239]
[1756910243301,0.6424,4455.3,4454.8,0.239]
[1756910243711,0.239,4455.4,4454.7,3.2078]
[1756910244006,0.6424,4454.9,4454.5,40.8]
[1756910244202,0.484,4455.0,4454.5,40.8]
[1756910244408,0.51210412,4454.9,4454.5,40.8]
[1756910244610,3.2078,4454.8,4454.5,40.8]
[1756910244911,0.6424,4454.6,4454.5,40.8]
[1756910245111,0.75116681,4454.6,4453.2,3.2078]
[1756910245314,0.245,4454.0,4453.2,3.2078]
[1756910245510,0.239,4453.9,4453.2,3.2078]
[1756910245711,0.239,4453.9,4453.3,40.8]
[1756910246110,0.6424,4453.4,4453.3,40.8]
[1756910246311,0.239,4453.4,4452.7,3.2078]
[1756910246516,0.239,4453.4,4452.1,0.239]
[1756910246517,0.6424,4452.9,4452.2,3.2078]
[1756910246716,0.8814,4452.9,4452.3,40.8]
[1756910247113,0.8814,4452.9,4452.4,0.5337]
[1756910247306,0.239,4452.9,4452.3,40.8]
[1756910247510,0.6424,4453.2,4452.5,0.1835]
[1756910247717,0.239,4453.4,4452.8,3.2078]
[1756910247913,0.8814,4453.4,4452.8,3.2078]
[1756910248507,0.239,4453.4,4452.7,0.239]
[1756910248707,0.6424,4453.3,4452.7,0.239]
[1756910248914,0.6424,4453.3,4452.6,0.239]
[1756910249411,0.239,4453.4,4452.3,41.3337]
[1756910249608,0.6424,4453.3,4452.3,40.8]
[1756910249813,0.245,4452.0,4451.7,3.2078]
[1756910250013,0.6424,4451.9,4451.7,3.2078]
[1756910250415,0.6424,4451.9,4451.8,40.8]
[1756910250812,0.3124,4451.9,4451.8,40.8]
[1756910251921,3.2078,4452.4,4451.8,40.8]
[1756910252116,36.46642105,4453.5,4452.1,0.6614]
[1756910252117,3.2078,4452.9,4452.1,0.6614]
[1756910252418,3.6918,4453.5,4452.6,0.6614]
[1756910252613,3.4468,4453.5,4452.7,0.6614]
[1756910253118,3.4468,4453.5,4452.9,0.6614]
[1756910253314,3.6918,4453.5,4452.9,0.6614]
[1756910253721,3.4468,4453.5,4452.9,0.6614]
[1756910253916,0.245,4454.0,4453.1,0.6614]
[1756910254115,0.6424,4454.1,4453.1,0.9004]
[1756910254317,0.6424,4454.1,4453.2,0.6614]
[1756910254318,0.239,4454.0,4453.2,0.6614]
[1756910254818,0.6424,4454.8,4453.7,3.88242105]
[1756910255016,0.239,4454.7,4454.1,0.6614]
[1756910255516,0.6424,4454.6,4454.1,0.6614]
[1756910255720,3.8502,4454.9,4454.1,0.6614]
[1756910255917,3.4468,4454.9,4454.3,0.6614]
[1756910256319,4.0892,4454.9,4454.3,0.6614]
[1756910257924,0.6424,4454.8,4454.2,40.8]
[1756910258115,0.6424,4454.7,4454.2,40.8]
[1756910258322,3.2078,4454.9,4454.3,0.6614]
[1756910258520,0.239,4455.2,4454.3,0.6614]
[1756910259624,0.6424,4455.1,4454.3,0.6614]
[1756910259825,0.8814,4455.1,4454.3,0.6614]
[1756910260624,0.245,4455.0,4454.3,0.6614]
[1756910260829,0.6424,4454.9,4454.3,0.6614]
[1756910263031,0.6046,4455.4,4454.6,0.6311]
[1756910263332,0.6046,4455.7,4455.0,3.2078]
[1756910263622,0.6046,4455.7,4455.1,41.4311]
[1756910264224,0.239,4455.8,4455.1,41.4311]
[1756910264430,0.6046,4455.7,4455.1,41.4311]
[1756910265624,0.6046,4455.7,4455.1,40.8]
[1756910266333,0.6046,4455.7,4455.1,41.039]
[1756910266831,0.6046,4455.7,4455.1,40.8]
[1756910267233,0.239,4455.8,4455.1,40.8]
[1756910267427,3.2078,4455.7,4455.1,40.8]
[1756910267730,0.6046,4455.4,4455.1,40.8]
[1756910267938,0.6046,4455.2,4455.1,40.8]
[1756910268929,0.2544,4455.5,4455.1,40.8]
[1756910269230,0.6046,4455.4,4455.2,0.6311]
[1756910269731,0.8436,4455.5,4455.1,40.8]
[1756910269930,0.239,4455.5,4455.2,0.6311]
[1756910270131,0.239,4455.5,4455.1,40.8]
[1756910270333,0.239,4455.5,4455.2,0.6311]
[1756910270532,0.239,4455.5,4455.1,40.8]
[1756910270731,0.239,4455.5,4455.2,0.6311]
[1756910270928,0.239,4455.5,4455.1,40.8]
[1756910271429,0.239,4455.5,4455.2,0.6311]
[1756910271825,0.239,4455.5,4455.0,0.3983]
[1756910272023,3.8124,4455.8,4455.1,0.8701]
[1756910272329,0.6046,4455.7,4455.1,0.6311]
[1756910272526,0.6046,4455.7,4455.6,40.8]
[1756910273339,4.6046,4455.7,4455.6,40.8]
[1756910274135,4.0,4455.7,4454.9,3.2078]
[1756910274341,0.2544,4455.0,4454.4,3.2078]
[1756910274637,0.239,4454.9,4454.5,0.2562]
[1756910274832,3.8124,4455.3,4454.6,0.6311]
[1756910275039,3.8124,4455.8,4455.1,0.6311]
[1756910275339,0.239,4455.7,4455.3,0.6311]
[1756910275542,0.6046,4455.6,4455.2,40.8]
[1756910275839,0.2544,4455.5,4455.2,40.8]
[1756910276032,0.8436,4455.7,4455.2,40.8]
[1756910276435,0.2544,4455.5,4455.2,40.8]
[1756910276838,3.8124,4455.3,4455.2,40.8]
[1756910277042,4.0514,4455.3,4455.2,40.8]
[1756910277238,8.0514,4455.3,4455.2,40.8]
[1756910277446,0.6046,4454.4,4453.8,3.8389]
[1756910277636,0.2544,4454.5,4453.1,3.2078]
[1756910277637,0.6046,4453.9,4453.1,3.2078]
[1756910277941,0.239,4453.8,4453.2,40.8]
[1756910280344,0.6046,4453.9,4453.2,40.8]
[1756910280642,0.239,4453.8,4453.4,0.6311]
[1756910280845,0.239,4454.1,4453.5,0.2562]
[1756910281032,0.239,4454.1,4453.6,0.6311]
[1756910281239,3.2078,4454.2,4453.6,0.6311]
[1756910281542,0.239,4454.1,4453.6,0.6311]
[1756910281746,0.239,4454.1,4453.5,0.2562]
[1756910281939,0.239,4454.1,4453.6,0.6311]
[1756910282243,0.859,4454.0,4453.2,40.8]
[1756910282437,0.6046,4453.9,4453.2,40.8]
[1756910283144,0.6046,4453.9,4453.1,3.2078]
[1756910283444,0.2544,4454.0,4453.7,40.8]
[1756910283644,0.3112,4454.0,4453.7,40.8]
[1756910283944,0.6046,4453.8,4453.7,40.8]
[1756910284248,0.6614,4454.0,4453.8,0.6311]
[1756910284444,0.6046,4453.8,4453.7,40.8]
[1756910284641,0.6046,4453.8,4452.6,3.2078]
[1756910284642,0.6046,4453.7,4452.6,3.2078]
[1756910284841,3.2078,4453.2,4452.6,3.2078]
[1756910285042,0.2544,4453.0,4452.6,3.2078]
[1756910285237,0.2544,4453.0,4452.7,40.8]
[1756910285442,0.6046,4452.9,4452.7,40.8]
[1756910285638,0.2544,4453.0,4452.7,40.8]
[1756910285843,0.239,4453.1,4452.7,40.8]
[1756910286044,0.239,4453.5,4453.1,0.6311]
[1756910287346,0.0568,4454.0,4453.2,0.6311]
[1756910287539,0.0568,4454.0,4453.6,3.2078]
[1756910287852,0.6046,4454.9,4453.8,0.6311]
[1756910287853,0.239,4454.6,4453.8,0.6311]
[1756910288046,0.8436,4454.6,4453.8,0.6311]
[1756910288245,0.239,4454.6,4454.0,0.1178]
[1756910288446,0.239,4454.8,4454.1,0.6311]
[1756910288844,0.6046,4454.7,4454.1,0.6311]
[1756910289953,3.8124,4454.7,4453.7,0.6311]
[1756910290857,0.239,4454.6,4453.8,40.8]
[1756910291047,0.239,4454.6,4453.9,0.6311]
[1756910291448,0.239,4454.5,4454.0,0.1178]
[1756910291645,0.0555,4454.8,4454.1,0.6311]